bitfinex-derivatives/quotes_SOLF0:USTF0_20250109
["timestamp","ask_amount","ask_price","bid_price","bid_amount"]
[1736461999181,2.6846,186.26,186.19,2.6855]
[1736461999677,2.6847,186.25,186.19,2.6855]
[1736461999878,4.94,186.25,186.15,15.15071489]
[1736462000086,4.94,186.25,186.15,12.46471489]
[1736462001184,2.685,186.23,186.16,110.22540251]
[1736462005691,4.94,186.25,186.18,12.46471489]
[1736462006198,3.2167,186.27,186.18,12.46471489]
[1736462006493,4.92,186.29,186.18,12.46471489]
[1736462006693,12.46471489,186.32,186.18,12.46471489]
[1736462006892,4.92,186.29,186.18,12.46471489]
[1736462007089,7.6041,186.29,186.22,2.685]
[1736462007293,4.92,186.3,186.21,12.46471489]
[1736462007493,4.92,186.3,186.24,2.6847]
[1736462007788,4.92,186.33,186.21,12.46471489]
[1736462007993,4.92,186.33,186.24,12.46471489]
[1736462008689,4.92,186.33,186.28,2.6842]
[1736462008897,4.92,186.33,186.24,12.46471489]
[1736462009498,2.6835,186.34,186.27,2.6844]
[1736462010602,7.6035,186.34,186.27,2.6844]
[1736462011902,4.92,186.34,186.24,12.46471489]
[1736462012105,2.6835,186.33,186.26,2.6845]
[1736462012597,4.92,186.34,186.27,2.6844]
[1736462013199,4.7163,186.37,186.24,12.46471489]
[1736462013404,1.6034,186.37,186.31,2.6837]
[1736462014007,12.46471489,186.42,186.27,12.46471489]
[1736462014206,5.76434622,186.41,186.32,2.6836]
[1736462014508,4.9,186.41,186.32,2.6836]
[1736462015205,2.6827,186.39,186.32,2.6836]
[1736462021304,4.9,186.4,186.32,2.6836]
[1736462021504,2.6828,186.38,186.32,2.6836]
[1736462023207,12.46471489,186.39,186.27,12.46471489]
[1736462023406,2.6834,186.34,186.28,2.6842]
[1736462023604,14.01711489,186.39,186.24,18.20887289]
[1736462023806,12.46471489,186.36,186.24,18.20887289]
[1736462024006,2.6835,186.33,186.27,2.6843]
[1736462024304,2.6835,186.33,186.24,18.20887289]
[1736462025007,2.6835,186.33,186.27,2.6843]
[1736462025711,2.6835,186.33,186.28,2.6842]
[1736462029711,4.9,186.33,186.24,5.744158]
[1736462031110,2.6841,186.3,186.25,2.6846]
[1736462031619,2.6839,186.31,186.24,5.744158]
[1736462031816,17.36471489,186.33,186.24,5.744158]
[1736462032309,2.6843,186.28,186.24,5.744158]
[1736462032710,2.6845,186.27,186.24,5.744158]
[1736462033014,12.46471489,186.3,186.24,5.744158]
[1736462033615,2.6845,186.27,186.2,2.6853]
[1736462033913,12.46471489,186.3,186.2,2.6853]
[1736462034310,2.6846,186.26,186.2,2.6853]
[1736462034508,12.46471489,186.3,186.19,12.46471489]
[1736462034705,12.46471489,186.3,186.18,2.6856]
[1736462034912,1.545,186.29,186.18,2.6856]
[1736462035316,2.6848,186.25,186.18,2.6856]
[1736462036016,2.6849,186.24,186.18,2.6856]
[1736462036817,2.6849,186.23,186.18,2.6856]
[1736462037309,2.6851,186.22,186.17,1.5099]
[1736462038408,2.6851,186.22,186.16,110.22530251]
[1736462039516,2.6853,186.21,186.16,110.22530251]
[1736462040316,12.46471489,186.24,186.12,15.66401489]
[1736462040912,12.46471489,186.24,186.12,18.35041489]
[1736462042315,12.46471489,186.24,186.12,15.66401489]
[1736462042517,2.6855,186.2,186.13,2.6864]
[1736462043317,2.6858,186.18,186.13,7.9820722]
[1736462043526,7.9820722,186.18,186.13,7.9820722]
[1736462043819,7.9820722,186.18,186.11,7.9820722]
[1736462045118,2.6859,186.17,186.11,7.9820722]
[1736462046421,4.9,186.21,186.15,7.9820722]
[1736462046623,4.9,186.21,186.17,7.9820722]
[1736462047322,3.1476,186.26,186.13,12.46818726]
[1736462047518,3.1476,186.26,186.16,12.46818726]
[1736462047814,8.0476,186.26,186.16,12.46818726]
[1736462048412,1.5147,186.26,186.16,12.46818726]
[1736462048617,12.46818726,186.28,186.19,12.46818726]
[1736462048618,4.9,186.28,186.19,12.46818726]
[1736462050125,2.6844,186.27,186.19,12.46818726]
[1736462050325,12.46818726,186.31,186.19,12.46818726]
[1736462050620,2.6841,186.3,186.23,2.6849]
[1736462050822,7.5841,186.3,186.23,2.6849]
[1736462051519,2.6841,186.29,186.23,2.6849]
[1736462051716,4.9,186.3,186.22,2.685]
[1736462052720,2.6841,186.29,186.22,2.685]
[1736462054424,2.6842,186.28,186.22,2.685]
[1736462055022,4.9,186.3,186.19,12.46818726]
[1736462056127,2.6844,186.27,186.22,2.685]
[1736462056822,2.6844,186.27,186.19,12.46818726]
[1736462057024,2.6845,186.26,186.2,2.6852]
[1736462057424,4.9,186.3,186.22,2.685]
[1736462057728,2.6845,186.26,186.19,12.46818726]
[1736462057925,2.6845,186.26,186.2,2.6852]
[1736462058121,2.6845,186.26,186.19,12.46818726]
[1736462059122,2.6845,186.26,186.21,2.6852]
[1736462059823,4.9,186.3,186.19,12.46818726]
[1736462060023,4.9,186.3,186.18,3.1929]
[1736462060229,4.9,186.29,186.18,3.1929]
[1736462060626,2.6846,186.26,186.21,2.6852]
[1736462061025,4.9,186.29,186.18,3.1929]
[1736462061227,12.46818726,186.28,186.18,1.5934]
[1736462061529,14.06568726,186.28,186.18,1.5934]
[1736462061729,14.06568726,186.28,186.18,4.279]
[1736462063030,2.685,186.23,186.17,4.2812]
[1736462063828,2.6851,186.22,186.17,1.5954]
[1736462064027,1.5318,186.27,186.13,1.4987]
[1736462064028,12.46818726,186.25,186.13,1.4987]
[1736462064228,12.46818726,186.25,186.12,14.08438726]
[1736462065430,12.46818726,186.25,186.13,2.6863]
[1736462065928,2.6855,186.2,186.13,2.6863]
[1736462066127,2.6855,186.2,186.14,2.6862]
[1736462066430,4.9,186.21,186.12,14.08438726]
[1736462066624,4.9,186.21,186.17,2.6857]
[1736462066822,4.9,186.21,186.1,107.57419687]
[1736462067026,4.9,186.21,186.11,12.46818726]
[1736462067228,4.9,186.21,186.17,2.6858]
[1736462067431,4.9,186.21,186.11,12.46818726]
[1736462067832,4.9,186.24,186.11,12.46818726]
[1736462068029,2.6852,186.22,186.16,2.6859]
[1736462069332,2.6852,186.22,186.16,10.66517318]
[1736462069631,2.6854,186.2,186.15,7.97927318]
[1736462069836,7.97927318,186.23,186.15,7.97927318]
[1736462070333,7.97927318,186.18,186.1,107.57419687]
[1736462070536,7.97927318,186.18,186.1,115.55347005]
[1736462070939,7.97927318,186.16,186.11,2.6866]
[1736462071934,10.66527318,186.16,186.11,2.6866]
[1736462072335,7.97927318,186.18,186.12,7.97927318]
[1736462072537,10.66507318,186.18,186.13,2.6864]
[1736462073135,10.66447318,186.21,186.17,2.6858]
[1736462073331,2.6852,186.21,186.12,12.46933925]
[1736462073937,2.6854,186.2,186.15,2.686]
[1736462076238,17.36933925,186.24,186.1,114.89455808]
[1736462076540,2.6859,186.17,186.12,2.6864]
[1736462076842,2.6859,186.17,186.13,2.6863]
[1736462077141,2.6857,186.18,186.1,107.57419687]
[1736462077340,12.46933925,186.24,186.12,12.46933925]
[1736462077540,4.9,186.23,186.16,2.6859]
[1736462077842,2.6853,186.21,186.12,12.46933925]
[1736462078034,12.46933925,186.24,186.16,2.6858]
[1736462078035,17.36933925,186.24,186.16,2.6858]
[1736462078236,17.36933925,186.24,186.12,12.46933925]
[1736462078440,2.6852,186.22,186.12,12.46933925]
[1736462078640,17.36933925,186.24,186.16,2.6858]
[1736462078841,12.46933925,186.24,186.12,12.46933925]
[1736462079040,2.6853,186.21,186.12,12.46933925]
[1736462080349,2.685,186.23,186.19,2.6855]
[1736462080945,2.6851,186.22,186.15,12.46933925]
[1736462081342,147.66052673,186.39,186.19,12.46933925]
[1736462081546,2.684,186.3,186.25,2.6845]
[1736462081744,9.5071,186.37,186.26,12.46933925]
[1736462081944,0.86464647,186.36,186.27,12.46933925]
[1736462082552,4.6071,186.37,186.3,12.46933925]
[1736462082553,1.5408,186.37,186.3,12.46933925]
[1736462082849,7.65715922,186.38,186.3,12.46933925]
[1736462083048,7.65715922,186.38,186.33,15.15283925]
[1736462084253,7.65715922,186.38,186.33,12.46933925]
[1736462084551,10.33995922,186.38,186.33,12.46933925]
[1736462085849,7.65715922,186.38,186.33,15.15273925]
[1736462086248,7.65715922,186.38,186.33,12.46933925]
[1736462087148,7.65715922,186.38,186.35,2.6832]
[1736462087453,7.65715922,186.38,186.33,12.46933925]
[1736462087651,1.6116,186.45,186.36,12.46933925]
[1736462088251,2.6819,186.44,186.38,2.6827]
[1736462089250,1.6116,186.45,186.36,12.46933925]
[1736462089251,4.2934,186.45,186.39,2.6826]
[1736462089448,12.46933925,186.48,186.36,12.46933925]
[1736462089853,0.86405414,186.47,186.36,12.46933925]
[1736462090254,2.6814,186.48,186.4,2.6825]
[1736462090555,17.36933925,186.51,186.39,12.46933925]
[1736462090859,0.86397897,186.5,186.39,12.46933925]
[1736462091656,2.6813,186.49,186.41,2.6823]
[1736462091961,0.86397916,186.48,186.36,12.46933925]
[1736462092161,0.86397916,186.47,186.36,12.46933925]
[1736462092353,0.86397916,186.47,186.37,2.6829]
[1736462092553,12.46933925,186.48,186.37,2.6829]
[1736462092751,2.6819,186.45,186.37,2.6829]
[1736462092957,12.46933925,186.48,186.36,12.46933925]
[1736462093161,0.86412668,186.47,186.33,17.36933925]
[1736462093360,2.6823,186.42,186.33,17.36933925]
[1736462093559,12.46933925,186.48,186.36,12.46933925]
[1736462093862,0.86405619,186.47,186.39,12.46933925]
[1736462094055,4.9,186.51,186.39,12.46933925]
[1736462094261,0.8640535,186.5,186.39,12.46933925]
[1736462094458,2.6817,186.46,186.39,12.46933925]
[1736462094661,4.9,186.51,186.39,12.46933925]
[1736462094864,0.8640403,186.5,186.39,12.46933925]
[1736462095066,0.8640403,186.5,186.42,12.46933925]
[1736462095267,4.9,186.51,186.42,12.46933925]
[1736462095467,1.5874,186.52,186.45,2.6818]
[1736462095663,1.5874,186.52,186.45,12.46933925]
[1736462096662,4.9,186.56,186.45,12.46933925]
[1736462096963,4.9,186.56,186.47,2.6815]
[1736462096964,0.86365353,186.55,186.47,2.6815]
[1736462097364,4.9,186.56,186.47,2.6815]
[1736462097763,1.5893,186.57,186.48,12.46933925]
[1736462097959,1.5893,186.57,186.51,12.46933925]
[1736462098465,4.9,186.62,186.51,12.46933925]
[1736462098668,0.8634755,186.61,186.51,12.46933925]
[1736462099169,0.8634755,186.61,186.54,12.46933925]
[1736462099371,6.5236,186.62,186.54,12.46933925]
[1736462099662,2.6796,186.61,186.54,15.14983925]
[1736462099868,6.5236,186.62,186.54,12.46933925]
[1736462100260,4.9,186.62,186.54,12.46933925]
[1736462100663,12.46933925,186.66,186.54,12.46933925]
[1736462101169,2.6792,186.64,186.57,2.68]
[1736462101567,12.46933925,186.66,186.57,2.68]
[1736462101763,2.6792,186.63,186.57,2.68]
[1736462101967,2.6792,186.63,186.56,2.6802]
[1736462103375,2.6793,186.63,186.54,15.14983925]
[1736462103570,12.46933925,186.66,186.54,12.46933925]
[1736462103967,17.36933925,186.66,186.54,12.46933925]
[1736462105071,2.6797,186.6,186.54,12.46933925]
[1736462106278,17.36933925,186.66,186.54,12.46933925]
[1736462106477,2.6798,186.59,186.54,12.46933925]
[1736462110080,17.36933925,186.66,186.54,12.46933925]
[1736462110270,2.6799,186.58,186.54,12.46933925]
[1736462113078,17.36933925,186.66,186.54,12.46933925]
[1736462113380,2.6801,186.57,186.54,12.46933925]
[1736462116779,12.46933925,186.63,186.49,112.14923065]
[1736462117083,2.6807,186.53,186.5,12.46933925]
[1736462117283,2.6807,186.53,186.49,113.21393065]
[1736462117284,12.46933925,186.6,186.49,108.90803065]
[1736462117478,2.6811,186.5,186.49,107.34383065]
[1736462117674,2.6811,186.5,186.48,12.46933925]
[1736462118279,2.6814,186.48,186.43,29.16296097]
[1736462118480,12.46933925,186.54,186.43,12.46933925]
[1736462118987,9.6376,186.59,186.4,14.04783925]
[1736462118988,12.46933925,186.51,186.4,14.04783925]
[1736462119283,9.6759,186.5,186.4,14.04783925]
[1736462119484,2.6819,186.45,186.4,14.04783925]
[1736462120783,9.6759,186.5,186.4,12.46933925]
[1736462121279,2.6818,186.45,186.4,12.46933925]
[1736462121579,2.6818,186.45,186.38,4.2774]
[1736462121884,2.6818,186.45,186.38,2.6828]
[1736462122184,2.6819,186.44,186.38,2.6828]
[1736462123681,12.46933925,186.48,186.37,12.46933925]
[1736462124487,12.46933925,186.48,186.32,29.16296097]
[1736462124685,12.46933925,186.48,186.35,15.15253925]
[1736462126083,2.6823,186.42,186.35,15.15253925]
[1736462126688,2.6824,186.41,186.35,15.15253925]
[1736462127992,2.6825,186.4,186.35,15.15253925]
[1736462129087,2.6828,186.38,186.35,12.46933925]
[1736462130290,2.6827,186.39,186.35,12.46933925]
[1736462132197,2.6827,186.39,186.35,15.15253925]
[1736462137299,2.6827,186.39,186.35,7.96292556]
[1736462137496,2.6827,186.39,186.37,7.96292556]
[1736462137893,7.96292556,186.42,186.37,7.96292556]
[1736462139001,2.6826,186.4,186.37,7.96292556]
[1736462142303,7.96292556,186.42,186.37,7.96292556]
[1736462142503,2.6824,186.41,186.37,7.96292556]
[1736462143303,2.6824,186.41,186.37,10.64582556]
[1736462143505,4.7759,186.5,186.39,7.96292556]
[1736462143699,7.96292556,186.45,186.39,7.96292556]
[1736462144594,4.9,186.46,186.41,7.96292556]
[1736462144995,7.5818,186.46,186.41,7.96292556]
[1736462145406,4.7759,186.5,186.42,2.6821]
[1736462145607,7.96292556,186.48,186.43,7.96292556]
[1736462146700,2.6812,186.49,186.43,10.64492556]
[1736462148305,2.6814,186.48,186.43,10.64492556]
[1736462148505,2.6814,186.48,186.43,7.96292556]
[1736462150608,2.6815,186.47,186.42,2.6822]
[1736462150808,2.6815,186.47,186.41,10.64522556]
[1736462151204,7.96292556,186.48,186.41,10.64522556]
[1736462151508,2.6816,186.46,186.41,10.64522556]
[1736462158708,2.6816,186.46,186.41,7.96292556]
[1736462158915,10.64452556,186.46,186.41,7.96292556]
[1736462159610,7.96292556,186.46,186.4,2.6825]
[1736462159812,7.96292556,186.44,186.36,7.96292556]
[1736462160207,2.6827,186.39,186.34,47.96778406]
[1736462160403,2.6827,186.39,186.34,55.93070962]
[1736462160712,7.96292556,186.4,186.34,47.96778406]
[1736462160913,7.96292556,186.4,186.33,7.96292556]
[1736462161509,2.6829,186.38,186.33,7.96292556]
[1736462165014,4.9,186.42,186.37,7.96292556]
[1736462165317,1.5753,186.48,186.39,7.96292556]
[1736462165514,7.96292556,186.46,186.39,7.96292556]
[1736462166814,2.6816,186.46,186.41,7.96292556]
[1736462169212,2.6816,186.46,186.41,10.64522556]
[1736462171919,2.6814,186.48,186.43,10.64492556]
[1736462172118,2.6814,186.48,186.45,7.96292556]
[1736462176119,4.9,186.54,186.45,7.96292556]
[1736462176315,2.6811,186.5,186.45,7.96292556]
[1736462177921,2.6808,186.52,186.47,7.96292556]
[1736462179322,2.6808,186.52,186.46,2.6815]
[1736462179524,2.6808,186.52,186.47,7.96292556]
[1736462180328,2.6803,186.56,186.5,2.681]
[1736462180623,7.96292556,186.55,186.5,2.681]
[1736462181022,2.6803,186.56,186.5,2.681]
[1736462181222,7.96292556,186.56,186.51,2.6808]
[1736462181526,7.96292556,186.6,186.53,7.96292556]
[1736462182030,13.7439826,186.63,186.55,7.96292556]
[1736462182229,8.826216,186.62,186.55,7.96292556]
[1736462182526,7.96292556,186.63,186.57,10.64292556]
[1736462183225,7.47310323,186.68,186.62,7.96292556]
[1736462183226,7.33918716,186.68,186.62,7.96292556]
[1736462183521,7.33918716,186.68,186.59,12.40671239]
[1736462183723,1.492,186.69,186.59,12.40671239]
[1736462184025,12.40671239,186.71,186.59,12.40671239]
[1736462184234,1.72585734,186.7,186.62,12.40671239]
[1736462184524,0.86295694,186.7,186.65,2.6788]
[1736462185831,0.86295694,186.7,186.65,12.40671239]
[1736462186031,0.86295694,186.7,186.66,1.5056]
[1736462186330,0.86295694,186.7,186.68,2.6784]
[1736462186529,0.86295694,186.7,186.66,1.5056]
[1736462186924,0.86295694,186.7,186.66,4.1842]
[1736462187327,0.86295694,186.7,186.66,1.5056]
[1736462187530,0.86295694,186.7,186.67,2.6785]
[1736462187730,0.86295694,186.7,186.67,4.1973]
[1736462188630,12.40671239,186.77,186.71,2.678]
[1736462188631,2.6773,186.77,186.71,2.678]
[1736462189437,2.677,186.79,186.71,12.40671239]
[1736462190034,4.88,186.92,186.77,2.6772]
[1736462190235,12.40671239,186.89,186.77,2.6772]
[1736462190438,0.85541013,186.88,186.77,2.6772]
[1736462191139,2.6761,186.85,186.77,2.6772]
[1736462192931,2.6761,186.85,186.67,1.5632]
[1736462192932,12.40671239,186.83,186.71,12.40671239]
[1736462193335,12.40671239,186.8,186.69,4.88]
[1736462193540,2.6771,186.78,186.7,2.6781]
[1736462193739,2.6771,186.78,186.7,4.2163]
[1736462194543,2.6772,186.77,186.7,4.2163]
[1736462194744,12.40671239,186.8,186.7,1.5382]
[1736462195745,2.6772,186.77,186.7,1.5382]
[1736462195947,12.40671239,186.8,186.7,1.5382]
[1736462197144,12.40671239,186.8,186.69,107.22708808]
[1736462197145,2.6775,186.75,186.69,107.22708808]
[1736462197536,12.40671239,186.8,186.69,107.22708808]
[1736462198649,2.6778,186.73,186.66,4.2873]
[1736462198842,2.6778,186.73,186.66,2.6787]
[1736462199443,12.40671239,186.77,186.66,2.6787]
[1736462199748,2.6779,186.72,186.65,12.40671239]
[1736462200347,4.88,186.76,186.65,15.08561239]
[1736462200850,12.40671239,186.74,186.62,12.40671239]
[1736462201247,4.88,186.87,186.68,12.40671239]
[1736462201549,12.40671239,186.82,186.68,12.40671239]
[1736462201743,2.6775,186.75,186.68,15.08511239]
[1736462202238,2.6775,186.75,186.68,12.40671239]
[1736462202440,2.6778,186.73,186.68,12.40671239]
[1736462202839,4.88,186.8,186.68,12.40671239]
[1736462203243,2.6772,186.77,186.7,2.6782]
[1736462206953,12.40671239,186.91,186.76,12.40671239]
[1736462207152,1.5432,186.9,186.76,12.40671239]
[1736462207451,2.676,186.86,186.8,2.6767]
[1736462208352,2.6756,186.89,186.83,2.6763]
[1736462208851,1.5432,186.9,186.82,12.40671239]
[1736462209052,2.6755,186.89,186.83,2.6763]
[1736462209248,1.5432,186.9,186.83,2.6763]
[1736462209448,1.5432,186.9,186.82,12.40671239]
[1736462209648,3.2127,186.92,186.82,12.40671239]
[1736462210045,2.6753,186.9,186.84,2.6761]
[1736462217050,2.6755,186.89,186.82,15.08311239]
[1736462218356,3.2127,186.92,186.82,15.08311239]
[1736462218657,2.6756,186.88,186.82,15.08311239]
[1736462220655,2.6758,186.87,186.82,15.08311239]
[1736462223158,3.2127,186.92,186.82,12.40671239]
[1736462223360,2.6756,186.89,186.84,2.6762]
[1736462223959,3.2127,186.92,186.85,12.40671239]
[1736462224163,1.6384,186.92,186.85,12.40671239]
[1736462224862,4.3134,186.92,186.87,2.6756]
[1736462226156,1.6384,186.92,186.88,2.6756]
[1736462230466,2.6748,186.94,186.89,2.6754]
[1736462230667,1.4961,186.95,186.89,2.6754]
[1736462233061,1.5457,186.98,186.9,2.6752]
[1736462234167,2.6745,186.96,186.88,12.40671239]
[1736462235262,1.5457,186.98,186.91,12.40671239]
[1736462235771,1.5622,187.01,186.91,12.40671239]
[1736462236159,1.5622,187.01,186.94,12.40671239]
[1736462236363,2.6739,187.0,186.94,15.08141239]
[1736462236867,12.40671239,187.15,186.97,12.40671239]
[1736462237068,0.85422727,187.14,187.02,12.40671239]
[1736462237266,89.01237131,187.17,187.02,12.40671239]
[1736462237468,0.85409148,187.16,187.09,12.40671239]
[1736462237669,89.01237131,187.18,187.09,12.40671239]
[1736462237867,78.49597131,187.18,187.12,12.40671239]
[1736462238060,144.10968595,187.19,187.15,12.40671239]
[1736462238267,98.84330678,187.19,187.18,12.40671239]
[1736462238468,98.84330678,187.19,187.18,17.48671239]
[1736462238672,0.44322627,187.2,187.18,29.89342478]
[1736462238866,210.26067586,187.38,187.18,29.89342478]
[1736462239067,2.6686,187.37,187.3,12.40671239]
[1736462239267,210.26067586,187.38,187.36,12.40671239]
[1736462239669,12.40671239,187.49,187.36,17.54671239]
[1736462239968,12.40671239,187.46,187.33,17.54671239]
[1736462240174,12.40671239,187.42,187.38,512.51243675]
[1736462240672,2.6681,187.41,187.38,512.51243675]
[1736462240972,12.40671239,187.39,187.37,512.21123732]
[1736462241166,12.40671239,187.39,187.37,479.23893732]
[1736462241471,19.71455325,187.38,187.37,269.92388641]
[1736462241670,19.71455325,187.38,187.34,259.37651295]
[1736462242471,2.6691,187.34,187.21,1.5088]
[1736462242671,19.71455325,187.34,187.21,1.5088]
[1736462243267,19.71455325,187.31,187.21,1.5088]
[1736462243471,24.85455325,187.31,187.21,1.5088]
[1736462244270,0.30101,187.48,187.27,19.71455325]
[1736462244568,0.30101,187.48,187.36,19.71455325]
[1736462244767,2.6674,187.46,187.36,19.71455325]
[1736462246770,2.6678,187.45,187.34,2.6692]
[1736462246970,0.30101,187.48,187.34,2.6692]
[1736462247175,2.6681,187.43,187.32,2.6695]
[1736462247575,5.18,187.43,187.29,19.71455325]
[1736462248076,2.6684,187.41,187.3,2.6698]
[1736462248280,5.18,187.43,187.29,19.71455325]
[1736462249271,2.6688,187.38,187.29,22.38445325]
[1736462249673,2.669,187.36,187.29,19.71455325]
[1736462250072,24.89455325,187.43,187.26,19.71455325]
[1736462250771,2.6693,187.34,187.26,19.71455325]
[1736462250971,2.6693,187.34,187.24,4.6965]
[1736462251176,2.6689,187.37,187.24,7.3672]
[1736462251377,3.1396,187.42,187.24,7.3672]
[1736462253176,2.6691,187.36,187.24,4.6965]
[1736462253376,5.14,187.35,187.24,4.6965]
[1736462253779,2.6696,187.32,187.24,4.6965]
[1736462254980,2.6699,187.3,187.24,3.1098]
[1736462255184,5.14,187.35,187.2,19.71455325]
[1736462255579,2.6702,187.28,187.2,19.71455325]
[1736462255783,19.71455325,187.34,187.2,19.71455325]
[1736462256381,2.6702,187.28,187.2,19.71455325]
[1736462257786,19.71455325,187.34,187.2,19.71455325]
[1736462257988,2.6703,187.27,187.2,19.71455325]
[1736462258780,2.6703,187.27,187.19,2.6714]
[1736462258985,2.6705,187.26,187.18,4.6997]
[1736462259184,5.14,187.28,187.18,4.6997]
[1736462259584,2.6707,187.24,187.18,4.6997]
[1736462259787,5.14,187.28,187.17,25.42782088]
[1736462260195,2.6711,187.22,187.17,25.42782088]
[1736462261289,2.6709,187.24,187.17,25.42782088]
[1736462261785,2.6709,187.23,187.17,25.42782088]
[1736462262183,2.6709,187.23,187.17,5.71326763]
[1736462262689,2.671,187.22,187.17,5.71326763]
[1736462263580,2.671,187.22,187.15,2.672]
[1736462266789,2.6713,187.2,187.14,22.90195325]
[1736462268188,2.6713,187.2,187.14,25.57405325]
[1736462269894,5.1,187.21,187.14,3.1874]
[1736462270393,5.1,187.24,187.14,3.1874]
[1736462270593,2.6713,187.2,187.14,3.1874]
[1736462270997,2.6713,187.2,187.13,19.71455325]
[1736462271195,2.6715,187.19,187.13,22.38685325]
[1736462272192,2.6715,187.19,187.13,2.6723]
[1736462272392,2.6715,187.19,187.12,2.6724]
[1736462272786,5.1,187.24,187.11,106.97787621]
[1736462273995,19.71455325,187.23,187.11,106.97787621]
[1736462274294,2.672,187.16,187.09,2.6728]
[1736462274495,2.672,187.16,187.07,22.38755325]
[1736462274496,5.08,187.16,187.07,22.38755325]
[1736462274797,2.6722,187.14,187.07,19.71455325]
[1736462275798,2.6722,187.14,187.08,2.673]
[1736462276699,5.08,187.16,187.08,2.673]
[1736462276998,5.08,187.16,187.07,22.38765325]
[1736462277395,2.6724,187.13,187.07,22.38765325]
[1736462277594,5.08,187.16,187.07,22.38765325]
[1736462278601,19.71455325,187.23,187.07,22.38765325]
[1736462278800,5.06,187.22,187.08,2.6729]
[1736462279496,1.5496,187.21,187.08,2.6729]
[1736462280103,2.6722,187.14,187.08,2.6729]
[1736462281494,19.71455325,187.26,187.1,19.71455325]
[1736462281701,1.5791,187.28,187.13,19.71455325]
[1736462281903,5.06,187.27,187.14,4.5991]
[1736462282102,2.6708,187.24,187.17,2.6717]
[1736462282408,1.5791,187.28,187.16,19.71455325]
[1736462282796,0.24339,187.29,187.22,19.71455325]
[1736462282998,0.24339,187.29,187.25,19.71455325]
[1736462283206,1.5791,187.37,187.28,19.71455325]
[1736462283902,5.08,187.38,187.28,19.71455325]
[1736462284209,2.6692,187.35,187.28,22.38465325]
[1736462284899,2.6692,187.35,187.28,19.71455325]
[1736462285302,5.08,187.38,187.28,19.71455325]
[1736462285501,2.669,187.36,187.28,19.71455325]
[1736462286202,2.669,187.36,187.28,22.38465325]
[1736462286404,5.08,187.38,187.28,19.71455325]
[1736462286708,2.6693,187.35,187.26,5.6791]
[1736462287301,2.6693,187.35,187.27,2.6703]
[1736462287899,2.6693,187.34,187.27,2.6703]
[1736462288904,2.6697,187.32,187.26,3.0088]
[1736462289907,2.6698,187.31,187.26,3.0088]
[1736462293812,2.6692,187.35,187.26,3.0088]
[1736462294003,24.79455325,187.38,187.26,3.0088]
[1736462295109,3.1656,187.37,187.26,1.5259]
[1736462295910,3.1656,187.37,187.23,1.5212]
[1736462296112,2.6701,187.29,187.23,1.5212]
[1736462298713,5.0,187.3,187.23,1.5212]
[1736462298714,2.6702,187.28,187.23,1.5212]
[1736462298918,5.0,187.3,187.23,1.5212]
[1736462299213,16.13,187.43,187.23,1.5212]
[1736462299214,2.6704,187.27,187.23,1.5212]
[1736462300515,2.67,187.3,187.23,1.5212]
[1736462300914,4.98,187.36,187.23,4.192]
[1736462301316,2.6696,187.33,187.23,4.192]
[1736462301517,4.98,187.36,187.23,4.192]
[1736462301915,2.6696,187.33,187.24,2.6707]
[1736462302116,4.98,187.36,187.24,2.6707]
[1736462302315,8.4733,187.42,187.23,1.5212]
[1736462302516,4.98,187.41,187.26,19.71455325]
[1736462302819,19.71455325,187.47,187.23,1.5212]
[1736462302820,100.0,187.5,187.3,19.71455325]
[1736462303015,2.6684,187.41,187.34,22.38385325]
[1736462303814,4.98,187.45,187.34,22.38385325]
[1736462304014,2.6685,187.4,187.34,22.38385325]
[1736462305420,2.6682,187.42,187.35,2.669]
[1736462305822,4.98,187.45,187.34,19.71455325]
[1736462306023,4.98,187.45,187.34,22.38385325]
[1736462306222,4.98,187.45,187.34,19.71455325]
[1736462306821,4.98,187.47,187.35,2.6691]
[1736462307418,2.6683,187.42,187.35,2.6691]
[1736462307822,4.98,187.47,187.35,2.6691]
[1736462308024,2.6683,187.41,187.35,2.6691]